fUSD/lending_fUSD_20250905
["ID","MTS","AMOUNT","RATE_DAILY","PERIOD"]
[383768316,1757109267035,-425.45,0.00041369,120]
[383768317,1757109267045,-691.22,0.00041369,120]
[383768318,1757109267054,-601.12,0.00041369,120]
[383768319,1757109267064,-196.10799518,0.00041369,120]
[383768320,1757109267074,-401.24,0.00041369,120]
[383768321,1757109267084,-400.0,0.00041369,120]
[383768322,1757109267095,-1060.4,0.00041369,120]
[383768323,1757109267104,-487.13,0.00041369,120]
[383768324,1757109267113,-565.1,0.00041369,120]
[383768325,1757109267123,-607.93,0.00041369,120]
[383768326,1757109267133,-408.11,0.00041369,120]
[383768327,1757109267143,-599.17,0.00041369,120]
[383768328,1757109267152,-643.16,0.00041369,120]
[383768329,1757109267162,-400.0,0.00041369,120]
[383768330,1757109267172,-567.22,0.00041369,120]
[383768331,1757109267182,-269.14,0.00041369,120]
[383768332,1757109267191,-587.89,0.00041369,120]
[383768333,1757109267200,-649.4,0.00041369,120]
[383768334,1757109267210,-444.03,0.00041369,120]
[383768335,1757109267219,-540.45,0.00041369,120]
[383768336,1757109267229,-521.91,0.00041369,120]
[383768337,1757109267239,-577.54,0.00041369,120]
[383768338,1757109267248,-455.87,0.00041369,120]
[383768339,1757109267258,-606.17,0.00041369,120]
[383768340,1757109267268,-400.0,0.00041369,120]
[383768341,1757109267277,-432.49992747,0.00041369,120]
[383768342,1757109267287,-552.86,0.00041369,120]
[383768343,1757109267296,-738.19,0.00041369,120]
[383768344,1757109267305,-400.0,0.00041369,120]
[383768345,1757109267315,-400.0,0.00041369,120]
[383768346,1757109267324,-485.13,0.00041369,120]
[383768347,1757109267334,-497.92,0.00041369,120]
[383768348,1757109267343,-534.68,0.00041369,120]
[383768349,1757109267352,-434.21,0.00041369,120]
[383768350,1757109267361,-410.1,0.00041369,120]
[383768351,1757109267371,-697.19,0.00041369,120]
[383768352,1757109267380,-588.33,0.00041369,120]
[383768353,1757109267389,-467.87,0.00041369,120]
[383768354,1757109267399,-400.0,0.00041369,120]
[383768355,1757109267408,-400.0,0.00041369,120]
[383768356,1757109267418,-434.97,0.00041369,120]
[383768357,1757109267427,-462.16,0.00041369,120]
[383768358,1757109267437,-547.22,0.00041369,120]
[383768359,1757109267446,-301.99007091,0.00041369,120]
[383768360,1757109267456,-9387.3,0.00041369,120]
[383768361,1757109267465,-438.16,0.00041369,120]
[383768362,1757109267475,-400.44,0.00041369,120]
[383768363,1757109267484,-506.66,0.00041369,120]
[383768364,1757109267494,-467.62,0.00041369,120]
[383768365,1757109267503,-422.62,0.00041369,120]
[383768366,1757109267512,-406.5,0.00041369,120]
[383768367,1757109267522,-773.54,0.00041369,120]
[383768368,1757109267531,-765.31,0.00041369,120]
[383768369,1757109267540,-401.2,0.00041369,120]
[383768370,1757109267550,-417.09,0.00041369,120]
[383768371,1757109267559,-441.78,0.00041369,120]
[383768372,1757109267568,-553.83,0.00041369,120]
[383768373,1757109267577,-546.26,0.00041369,120]
[383768374,1757109267586,-400.0,0.00041369,120]
[383768375,1757109267596,-441.15,0.00041369,120]
[383768376,1757109267605,-785.59,0.00041369,120]
[383768377,1757109267615,-437.91,0.00041369,120]
[383768378,1757109267625,-447.37,0.00041369,120]
[383768379,1757109267635,-632.37,0.00041369,120]
[383768380,1757109267646,-414.4,0.00041369,120]
[383768381,1757109267656,-981.06,0.00041369,120]
[383768382,1757109267666,-569.2,0.00041369,120]
[383768383,1757109267676,-542.91,0.00041369,120]
[383768384,1757109267685,-414.08,0.00041369,120]
[383768385,1757109267695,-420.85,0.00041369,120]
[383768386,1757109267705,-1444.34,0.00041369,120]
[383768387,1757109267714,-2516.87,0.00041369,120]
[383768388,1757109267723,-441.96,0.00041369,120]
[383768389,1757109267733,-487.97,0.00041369,120]
[383768390,1757109267743,-586.94,0.00041369,120]
[383768391,1757109267752,-626.89,0.00041369,120]
[383768392,1757109267762,-447.68,0.00041369,120]
[383768393,1757109267772,-2345.08,0.00041369,120]
[383768394,1757109267782,-498.12,0.00041369,120]
[383768395,1757109267791,-448.78,0.00041369,120]
[383768396,1757109267801,-562.67,0.00041369,120]
[383768397,1757109267813,-475.22,0.00041369,120]
[383768398,1757109267826,-576.12,0.00041369,120]
[383768399,1757109267840,-459.73,0.00041369,120]
[383768400,1757109267854,-231.35,0.00041369,120]
[383768401,1757109267864,-546.92,0.00041369,120]
[383768402,1757109267874,-543.53,0.00041369,120]
[383768403,1757109267883,-495.5,0.00041369,120]
[383768404,1757109267893,-584.47,0.00041369,120]
[383768405,1757109267902,-551.73,0.00041369,120]
[383768406,1757109267912,-445.12,0.00041369,120]
[383768407,1757109267922,-549.32730668,0.00041369,120]
[383768408,1757109267931,-618.31,0.00041369,120]
[383768409,1757109267941,-2141.03,0.00041369,120]
[383768410,1757109267951,-502.39,0.00041369,120]
[383768411,1757109267960,-582.55,0.00041369,120]
[383768412,1757109267970,-884.72,0.00041369,120]
[383768413,1757109267979,-494.68,0.00041369,120]
[383768414,1757109267988,-492.2,0.00041369,120]
[383768415,1757109267998,-590.75,0.00041369,120]
[383768416,1757109268012,-434.34,0.00041369,120]
[383768417,1757109268022,-498.82,0.00041369,120]
[383768418,1757109268032,-423.04,0.00041369,120]
[383768419,1757109268042,-474.82,0.00041369,120]
[383768420,1757109268053,-467.44854786,0.00041369,120]
[383768421,1757109268063,-1028.14,0.00041369,120]
[383768422,1757109268084,-2757.36,0.00041369,120]
[383768423,1757109268100,-404.16,0.00041369,120]
[383768424,1757109268109,-701.4,0.00041369,120]
[383768425,1757109268118,-696.57,0.00041369,120]
[383768426,1757109268127,-503.15,0.00041369,120]
[383768427,1757109268137,-438.53,0.00041369,120]
[383768428,1757109268146,-766.81,0.00041369,120]
[383768429,1757109268161,-400.0,0.00041369,120]
[383768430,1757109268177,-480.98,0.00041369,120]
[383768431,1757109268187,-545.75607524,0.00041369,120]
[383768432,1757109268196,-425.95,0.00041369,120]
[383768433,1757109268206,-400.0,0.00041369,120]
[383768434,1757109268215,-400.0,0.00041369,120]
[383768435,1757109268225,-443.56,0.00041369,120]
[383768436,1757109268234,-400.0,0.00041369,120]
[383768437,1757109268244,-501.99,0.00041369,120]
[383768438,1757109268255,-441.78,0.00041369,120]
[383768439,1757109268264,-545.84,0.00041369,120]
[383768440,1757109268274,-439.9,0.00041369,120]
[383768441,1757109268283,-545.23,0.00041369,120]
[383768442,1757109268293,-405.11,0.00041369,120]
[383768443,1757109268303,-413.96,0.00041369,120]
[383768444,1757109268312,-470.74,0.00041369,120]
[383768445,1757109268321,-1154.65,0.00041369,120]
[383768446,1757109268331,-3534.15,0.00041369,120]
[383768447,1757109268340,-466.43,0.00041369,120]
[383768448,1757109268350,-552.13,0.00041369,120]
[383768449,1757109268359,-486.3,0.00041369,120]
[383768450,1757109268369,-529.91,0.00041369,120]
[383768451,1757109268379,-524.16,0.00041369,120]
[383768452,1757109268388,-231.75271563,0.00041369,120]
[383768453,1757109268397,-836.63,0.00041369,120]
[383768454,1757109268407,-647.19,0.00041369,120]
[383768455,1757109268416,-167.59,0.00041369,120]
[383768456,1757109268426,-531.26,0.00041369,120]
[383768457,1757109268435,-690.4,0.00041369,120]
[383768458,1757109268444,-508.58,0.00041369,120]
[383768459,1757109268453,-424.68,0.00041369,120]
[383768460,1757109268462,-1608.94,0.00041369,90]
[383768461,1757109268471,-496.78,0.00041369,120]
[383768462,1757109268480,-414.05,0.00041369,120]
[383768463,1757109268490,-400.0,0.00041369,120]
[383768464,1757109268499,-983.85,0.00041369,120]
[383768465,1757109268508,-522.3,0.00041369,120]
[383768466,1757109268517,-2782.91,0.00041369,120]
[383768467,1757109268527,-650.54,0.00041369,120]
[383768468,1757109268536,-1361.26,0.00041369,120]
[383768469,1757109268546,-436.1,0.00041369,120]
[383768470,1757109268555,-545.69,0.00041369,120]
[383768471,1757109268565,-649.0,0.00041369,120]
[383768472,1757109268574,-400.0,0.00041369,120]
[383768473,1757109268583,-442.27,0.00041369,120]
[383768474,1757109268593,-474.21,0.00041369,120]
[383768475,1757109268602,-603.16,0.00041369,120]
[383768476,1757109268611,-407.14,0.00041369,120]
[383768477,1757109268621,-8442.03,0.00041369,120]
[383768478,1757109268630,-436.72,0.00041369,120]
[383768479,1757109268640,-443.36,0.00041369,120]
[383768480,1757109268650,-621.71,0.00041369,120]
[383768481,1757109268659,-400.0,0.00041369,120]
[383768482,1757109268668,-406.08,0.00041369,120]
[383768483,1757109268678,-400.0,0.00041369,120]
[383768484,1757109268688,-1439.09,0.00041369,120]
[383768485,1757109268697,-475.57,0.00041369,120]
[383768486,1757109268706,-1300.45,0.00041369,120]
[383768487,1757109268717,-2688.71,0.00041369,118]
[383768488,1757109268726,-530.86,0.00041369,120]
[383768489,1757109268735,-423.37,0.00041369,120]
[383768490,1757109268745,-442.37,0.00041369,120]
[383768491,1757109268755,-425.64,0.00041369,120]
[383768492,1757109268765,-400.0,0.00041369,120]
[383768493,1757109268776,-4723.5,0.00041369,120]
[383768494,1757109268916,-514.62,0.00041369,120]
[383768495,1757109268926,-446.4,0.00041369,120]
[383768496,1757109268936,-783.27,0.00041369,120]
[383768497,1757109268945,-425.55,0.00041369,120]
[383768498,1757109268955,-440.05,0.00041369,120]
[383768499,1757109268964,-400.0,0.00041369,120]
[383768500,1757109268973,-483.04,0.00041369,120]
[383768501,1757109268982,-599.12,0.00041369,120]
[383768502,1757109268992,-483.3,0.00041369,120]
[383768503,1757109269003,-677.0,0.00041369,120]
[383768504,1757109269017,-1085.17,0.00041369,120]
[383768505,1757109269027,-3844.91,0.00041369,120]
[383768506,1757109269036,-1689.46,0.00041369,120]
[383768507,1757109269045,-421.08,0.00041369,120]
[383768508,1757109269055,-877.43,0.00041369,120]
[383768509,1757109269065,-300.04,0.00041369,120]
[383768510,1757109269074,-537.76,0.00041369,120]
[383768511,1757109269083,-436.27,0.00041369,120]
[383768512,1757109269093,-479.41,0.00041369,120]
[383768513,1757109269102,-931.34,0.00041369,120]
[383768514,1757109269111,-2095.01,0.00041369,120]
[383768515,1757109269121,-434.12,0.00041369,120]
[383768516,1757109269130,-1265.08,0.00041369,120]
[383768517,1757109269139,-828.12,0.00041369,120]
[383768518,1757109269148,-490.29,0.00041369,120]
[383768519,1757109269157,-407.95,0.00041369,120]
[383768520,1757109269166,-445.3,0.00041369,120]
[383768521,1757109269176,-1988.71,0.00041369,120]
[383768522,1757109269185,-400.0,0.00041369,120]
[383768523,1757109269194,-531.57,0.00041369,120]
[383768524,1757109269203,-428.34,0.00041369,120]
[383768525,1757109269212,-401.29,0.00041369,120]
[383768526,1757109269221,-720.58,0.00041369,120]
[383768527,1757109269230,-400.0,0.00041369,120]
[383768528,1757109269239,-400.0,0.00041369,120]
[383768529,1757109269248,-363.04,0.00041369,120]
[383768530,1757109269257,-400.0,0.00041369,120]
[383768531,1757109269266,-471.02,0.00041369,120]
[383768532,1757109269276,-2254.56,0.00041369,14]
[383768533,1757109269285,-786.84,0.00041369,120]
[383768534,1757109269294,-400.0,0.00041369,120]
[383768535,1757109269303,-1906.65,0.00041369,120]
[383768536,1757109269313,-3337.86,0.00041369,120]
[383768537,1757109269321,-404.67,0.00041369,120]
[383768538,1757109269330,-511.96,0.00041369,120]
[383768539,1757109269339,-911.18,0.00041369,120]
[383768540,1757109269348,-516.46,0.00041369,120]
[383768541,1757109269358,-488.47,0.00041369,120]
[383768542,1757109269367,-1977.28,0.00041369,120]
[383768543,1757109269376,-400.0,0.00041369,120]
[383768544,1757109269385,-457.95,0.00041369,120]
[383768545,1757109269394,-527.02,0.00041369,120]
[383768546,1757109269403,-689.76,0.00041369,120]
[383768547,1757109269412,-697.63,0.00041369,120]
[383768548,1757109269421,-433.65,0.00041369,120]
[383768549,1757109269430,-419.06,0.00041369,120]
[383768550,1757109269439,-436.45,0.00041369,60]
[383768551,1757109269448,-6963.13,0.00041369,120]
[383768552,1757109269457,-1232.95,0.00041369,120]
[383768553,1757109269466,-618.53,0.00041369,120]
[383768554,1757109269476,-1178.96147,0.00041488,30]
[383768555,1757109269485,-170.06810205,0.000415,120]
[383768556,1757109269494,-150.0,0.0004159,30]
[383768557,1757109269504,-1613.18677456,0.0004159,30]
[383768558,1757109269514,-339.30249,0.00041643,120]
[383768559,1757109269523,-634.468343,0.00041643,120]
[383768560,1757109269533,-409.66994809,0.00041643,120]
[383768561,1757109269542,-417.8,0.00041643,120]
[383768562,1757109269551,-400.0,0.00041643,120]
[383768563,1757109269561,-400.0,0.00041643,120]
[383768564,1757109269570,-400.0,0.00041643,120]
[383768565,1757109269580,-944.57,0.00041643,120]
[383768566,1757109269589,-400.0,0.00041643,120]
[383768567,1757109269598,-846.07,0.00041643,120]
[383768568,1757109269608,-564.87,0.00041643,120]
[383768569,1757109269617,-765.62,0.00041643,120]
[383768570,1757109269626,-532.7366601,0.00041643,120]
[383768571,1757109269636,-433.33,0.00041643,120]
[383768572,1757109269645,-1155.55,0.00041643,120]
[383768573,1757109269654,-405.24,0.00041643,120]
[383768574,1757109269663,-678.29,0.00041643,120]
[383768575,1757109269672,-414.11,0.00041643,120]
[383768576,1757109269682,-413.3,0.00041643,120]
[383768577,1757109269691,-418.03,0.00041643,120]
[383768578,1757109269700,-420.25,0.00041643,120]
[383768579,1757109269709,-437.75,0.00041643,120]
[383768580,1757109269718,-506.4,0.00041643,120]
[383768581,1757109269728,-437.87,0.00041643,120]
[383768582,1757109269737,-451.2,0.00041643,120]
[383768583,1757109269747,-507.92,0.00041643,120]
[383768584,1757109269756,-461.35,0.00041643,120]
[383768585,1757109269766,-458.84,0.00041643,120]
[383768586,1757109269775,-428.49,0.00041643,120]
[383768587,1757109269785,-1054.45,0.00041643,120]
[383768588,1757109269795,-409.45,0.00041643,120]
[383768589,1757109269804,-400.0,0.00041643,120]
[383768590,1757109269813,-542.29,0.00041643,120]
[383768591,1757109269822,-508.21,0.00041643,120]
[383768592,1757109269832,-400.0,0.00041643,120]
[383768593,1757109269841,-493.63,0.00041643,120]
[383768594,1757109269850,-425.32,0.00041643,120]
[383768595,1757109269859,-518.21,0.00041643,120]
[383768596,1757109269869,-510.04,0.00041643,120]
[383768597,1757109269878,-449.3,0.00041643,120]
[383768598,1757109269887,-414.48,0.00041643,120]
[383768599,1757109269897,-153.113189,0.00041643,120]
[383768600,1757109269907,-970.87,0.00041643,120]
[383768601,1757109269916,-490.71,0.00041643,120]
[383768602,1757109269926,-436.72,0.00041643,120]
[383768603,1757109269935,-414.95,0.00041643,120]
[383768604,1757109269945,-447.82,0.00041643,120]
[383768605,1757109269954,-647.6,0.00041643,120]
[383768606,1757109269963,-425.6,0.00041643,120]
[383768607,1757109269974,-490.57,0.00041643,120]
[383768608,1757109269983,-641.44,0.00041643,120]
[383768609,1757109269992,-419.23,0.00041643,120]
[383768610,1757109270003,-401.8,0.00041643,120]
[383768611,1757109270014,-403.59,0.00041643,120]
[383768612,1757109270024,-548.51,0.00041643,120]
[383768613,1757109270034,-452.54,0.00041643,120]
[383768614,1757109270043,-440.39,0.00041643,120]
[383768615,1757109270052,-679.14,0.00041643,120]
[383768616,1757109270061,-433.62,0.00041643,120]
[383768617,1757109270071,-400.0,0.00041643,120]
[383768618,1757109270080,-589.1,0.00041643,120]
[383768619,1757109270090,-551.08,0.00041643,120]
[383768620,1757109270099,-415.82,0.00041643,120]
[383768621,1757109270108,-576.99,0.00041643,120]
[383768622,1757109270118,-455.37,0.00041643,120]
[383768623,1757109270127,-410.32,0.00041643,120]
[383768624,1757109270136,-497.74,0.00041643,120]
[383768625,1757109270146,-498.14,0.00041643,120]
[383768626,1757109270160,-878.01,0.00041643,120]
[383768627,1757109270170,-1227.44,0.00041643,120]
[383768628,1757109270179,-601.8,0.00041643,120]
[383768629,1757109270188,-404.89,0.00041643,120]
[383768630,1757109270198,-414.05,0.00041643,120]
[383768631,1757109270207,-562.13,0.00041643,120]
[383768632,1757109270216,-360.68229507,0.00041643,120]
[383768633,1757109270225,-457.02,0.00041643,120]
[383768634,1757109270234,-519.36,0.00041643,120]
[383768635,1757109270244,-464.19,0.00041643,120]
[383768636,1757109270253,-509.57,0.00041643,120]
[383768637,1757109270262,-467.9353656,0.00041643,120]
[383768638,1757109270271,-400.0,0.00041643,120]
[383768639,1757109270280,-536.82,0.00041643,120]
[383768640,1757109270290,-456.25,0.00041643,120]
[383768641,1757109270299,-422.04060615,0.00041643,120]
[383768642,1757109270309,-308.95570741,0.00041643,120]
[383768643,1757109270318,-1325.01,0.00041643,120]
[383768644,1757109270328,-662.17,0.00041643,120]
[383768645,1757109270337,-475.33,0.00041643,120]
[383768646,1757109270346,-580.54,0.00041643,120]
[383768647,1757109270355,-468.08,0.00041643,120]
[383768648,1757109270365,-504.21,0.00041643,30]
[383768649,1757109270374,-470.77,0.00041643,120]
[383768650,1757109270383,-417.63,0.00041643,120]
[383768651,1757109270393,-406.01,0.00041643,120]
[383768652,1757109270402,-560.94,0.00041643,120]
[383768653,1757109270411,-671.39,0.00041643,120]
[383768654,1757109270421,-660.54,0.00041643,120]
[383768655,1757109270430,-505.54,0.00041643,120]
[383768656,1757109270439,-343.17118955,0.00041643,2]
[383768657,1757109270448,-493.62,0.00041643,120]
[383768658,1757109270457,-400.0,0.00041643,120]
[383768659,1757109270467,-556.02,0.00041643,120]
[383768660,1757109270476,-514.72,0.00041643,120]
[383768661,1757109270485,-456.07,0.00041643,120]
[383768662,1757109270495,-1553.38,0.00041643,120]
[383768663,1757109270505,-737.77,0.00041643,120]
[383768664,1757109270514,-521.95,0.00041643,120]
[383768665,1757109270523,-418.68,0.00041643,120]
[383768666,1757109270533,-583.81,0.00041643,120]
[383768667,1757109270543,-498.62,0.00041643,120]
[383768668,1757109270552,-430.27,0.00041643,120]
[383768669,1757109270562,-579.68,0.00041643,120]
[383768670,1757109270572,-425.45,0.00041643,120]
[383768671,1757109270581,-691.22,0.00041643,120]
[383768672,1757109270590,-601.12,0.00041643,120]
[383768673,1757109270600,-401.24,0.00041643,120]
[383768674,1757109270609,-226.97163786,0.00041643,120]
[383768675,1757109270619,-1060.4,0.00041643,120]
[383768676,1757109270629,-487.13,0.00041643,120]
[383768677,1757109270638,-565.1,0.00041643,120]
[383768678,1757109270648,-607.93,0.00041643,120]
[383768679,1757109270657,-408.11,0.00041643,120]
[383768680,1757109270667,-599.17,0.00041643,120]
[383768681,1757109270676,-643.16,0.00041643,120]
[383768682,1757109270686,-400.0,0.00041643,120]
[383768683,1757109270696,-567.22,0.00041643,120]
[383768684,1757109270705,-587.89,0.00041643,120]
[383768685,1757109270715,-649.4,0.00041643,120]
[383768686,1757109270724,-444.03,0.00041643,120]
[383768687,1757109270734,-540.45,0.00041643,120]
[383768688,1757109270744,-521.91,0.00041643,120]
[383768689,1757109270753,-577.54,0.00041643,120]
[383768690,1757109270763,-455.87,0.00041643,120]
[383768691,1757109270773,-606.17,0.00041643,120]
[383768692,1757109270783,-281.14464905,0.00041643,120]
[383768693,1757109270793,-552.86,0.00041643,120]
[383768694,1757109270803,-738.19,0.00041643,120]
[383768695,1757109270812,-400.0,0.00041643,120]
[383768696,1757109270822,-400.0,0.00041643,120]
[383768697,1757109270832,-485.13,0.00041643,120]
[383768698,1757109270841,-497.92,0.00041643,120]
[383768699,1757109270851,-534.68,0.00041643,120]
[383768700,1757109270861,-434.21,0.00041643,120]
[383768701,1757109270870,-697.19,0.00041643,120]
[383768702,1757109270880,-588.33,0.00041643,120]
[383768703,1757109270890,-467.87,0.00041643,120]
[383768704,1757109270899,-400.0,0.00041643,120]
[383768705,1757109270908,-400.0,0.00041643,120]
[383768706,1757109270917,-434.97,0.00041643,120]
[383768707,1757109270926,-547.22,0.00041643,120]
[383768708,1757109270936,-9387.3,0.00041643,120]
[383768709,1757109270945,-438.16,0.00041643,120]
[383768710,1757109270954,-400.44,0.00041643,120]
[383768711,1757109270963,-506.66,0.00041643,120]
[383768712,1757109270972,-467.62,0.00041643,120]
[383768713,1757109270981,-422.62,0.00041643,120]
[383768714,1757109270996,-406.5,0.00041643,120]
[383768715,1757109271009,-773.54,0.00041643,120]
[383768716,1757109271019,-765.31,0.00041643,120]
[383768717,1757109271028,-401.2,0.00041643,120]
[383768718,1757109271037,-417.09,0.00041643,120]
[383768719,1757109271046,-441.78,0.00041643,120]
[383768720,1757109271055,-553.83,0.00041643,120]
[383768721,1757109271064,-546.26,0.00041643,120]
[383768722,1757109271074,-380.32,0.00041643,120]
[383768723,1757109271083,-441.15,0.00041643,120]
[383768724,1757109271092,-785.59,0.00041643,120]
[383768725,1757109271101,-437.91,0.00041643,120]
[383768726,1757109271111,-447.37,0.00041643,120]
[383768727,1757109271120,-632.37,0.00041643,120]
[383768728,1757109271129,-414.4,0.00041643,120]
[383768729,1757109271139,-981.06,0.00041643,120]
[383768730,1757109271149,-569.2,0.00041643,120]
[383768731,1757109271158,-542.91,0.00041643,120]
[383768732,1757109271167,-414.08,0.00041643,120]
[383768733,1757109271177,-420.85,0.00041643,120]
[383768734,1757109271185,-1444.34,0.00041643,120]
[383768735,1757109271195,-2516.87,0.00041643,120]
[383768736,1757109271204,-441.96,0.00041643,120]
[383768737,1757109271213,-487.97,0.00041643,120]
[383768738,1757109271222,-586.94,0.00041643,120]
[383768739,1757109271231,-626.89,0.00041643,120]
[383768740,1757109271240,-447.68,0.00041643,120]
[383768741,1757109271249,-2345.08,0.00041643,120]
[383768742,1757109271258,-498.12,0.00041643,120]
[383768743,1757109271267,-448.78,0.00041643,120]
[383768744,1757109271277,-562.67,0.00041643,120]
[383768745,1757109271286,-475.22,0.00041643,120]
[383768746,1757109271295,-576.12,0.00041643,120]
[383768747,1757109271305,-459.73,0.00041643,120]
[383768748,1757109271315,-546.92,0.00041643,120]
[383768749,1757109271324,-543.53,0.00041643,120]
[383768750,1757109271333,-495.5,0.00041643,120]
[383768751,1757109271343,-584.47,0.00041643,120]
[383768752,1757109271352,-551.73,0.00041643,120]
[383768753,1757109271361,-445.12,0.00041643,120]
[383768754,1757109271370,-618.31,0.00041643,120]
[383768755,1757109271379,-2141.03,0.00041643,120]
[383768756,1757109271388,-502.39,0.00041643,120]
[383768757,1757109271397,-582.55,0.00041643,120]
[383768758,1757109271406,-884.72,0.00041643,120]
[383768759,1757109271416,-494.68,0.00041643,120]
[383768760,1757109271425,-492.2,0.00041643,120]
[383768761,1757109271434,-590.75,0.00041643,120]
[383768762,1757109271443,-434.34,0.00041643,120]
[383768763,1757109271452,-423.04,0.00041643,120]
[383768764,1757109271461,-474.82,0.00041643,120]
[383768765,1757109271471,-1028.14,0.00041643,120]
[383768766,1757109271480,-2757.36,0.00041643,120]
[383768767,1757109271489,-404.16,0.00041643,120]
[383768768,1757109271498,-701.4,0.00041643,120]
[383768769,1757109271507,-696.57,0.00041643,120]
[383768770,1757109271516,-438.53,0.00041643,120]
[383768771,1757109271525,-766.81,0.00041643,120]
[383768772,1757109271534,-546.59378115,0.00041643,120]
[383768773,1757109271543,-480.98,0.00041643,120]
[383768774,1757109271552,-425.95,0.00041643,120]
[383768775,1757109271561,-393.62,0.00041643,120]
[383768776,1757109271571,-400.0,0.00041643,120]
[383768777,1757109271579,-443.56,0.00041643,120]
[383768778,1757109271588,-400.0,0.00041643,120]
[383768779,1757109271597,-501.99,0.00041643,120]
[383768780,1757109271607,-441.78,0.00041643,120]
[383768781,1757109271616,-545.84,0.00041643,120]
[383768782,1757109271625,-439.9,0.00041643,120]
[383768783,1757109271635,-545.23,0.00041643,120]
[383768784,1757109271644,-405.11,0.00041643,120]
[383768785,1757109271653,-470.74,0.00041643,120]
[383768786,1757109271663,-1154.65,0.00041643,120]
[383768787,1757109271673,-413.96,0.00041643,120]
[383768788,1757109271682,-3534.15,0.00041643,120]
[383768789,1757109271691,-466.43,0.00041643,120]
[383768790,1757109271700,-552.13,0.00041643,120]
[383768791,1757109271709,-486.3,0.00041643,120]
[383768792,1757109271719,-529.91,0.00041643,120]
[383768793,1757109271728,-524.16,0.00041643,120]
[383768794,1757109271738,-836.63,0.00041643,120]
[383768795,1757109271747,-647.19,0.00041643,120]
[383768796,1757109271756,-531.26,0.00041643,120]
[383768797,1757109271765,-690.4,0.00041643,120]
[383768798,1757109271775,-508.58,0.00041643,120]
[383768799,1757109271784,-424.68,0.00041643,120]
[383768800,1757109271794,-1608.94,0.00041643,90]
[383768801,1757109271803,-496.78,0.00041643,120]
[383768802,1757109271813,-414.05,0.00041643,120]
[383768803,1757109271822,-400.0,0.00041643,120]
[383768804,1757109271832,-983.85,0.00041643,120]
[383768805,1757109271842,-522.3,0.00041643,120]
[383768806,1757109271851,-2782.91,0.00041643,120]
[383768807,1757109271861,-650.54,0.00041643,120]
[383768808,1757109271870,-1361.26,0.00041643,120]
[383768809,1757109271879,-436.1,0.00041643,120]
[383768810,1757109271888,-649.0,0.00041643,120]
[383768811,1757109271897,-335.80801587,0.00041643,120]
[383768812,1757109271907,-442.27,0.00041643,120]
[383768813,1757109271916,-474.21,0.00041643,120]
[383768814,1757109271925,-603.16,0.00041643,120]
[383768815,1757109271934,-407.14,0.00041643,120]